Workbook

Sheet Calculation
B6: This communication is not intended to constitute tax advice. You should seek advice based on your particular circumstances
B7: from your independent tax advisor. The information is subject to the Disclosure Statement below.
B9: Hypothetical Calculation of Potential Tax Benefits of Qualified Opportunity Zone Investment
C11: Inputs | K11: Calculated Assumptions
C13: Initial Capital Gain/Commitment ($) | H13: 1000000 | K13: LT Capital Gain Tax Rate | O13: 0.2
C14: Net Investment Income Tax | H14: Yes | K14: Net Investment Income Tax Rate | O14: =IF(H14="Yes", 3.8%, 0%) -> 0.038
C15: Taxpayer's State | H15: CT | K15: Federal Income Tax Rate | O15: 0.37
C16: Annual Growth for Non-QOF | H16: 0.09 | K16: Taxpayer's State Tax Rate | O16: =VLOOKUP(H15, Index!$A$4:$B$54, 2, FALSE) -> 0.0699
C17: Year of Investment | H17: 2025 | K17: State Conformity to OZ | O17: =VLOOKUP(H15, Index!$A$4:$D$54, 3, FALSE) -> Yes
K18: Growth for QOF | O18: =H16 -> 0.09
K19: Eligible for Step-Up in Basis | O19: =IF(2026-H17>=7, 15%, IF(2026-H17>=5, 10%, 0)) -> 0
C22: Illustration
M25: Non-QOF | O25: QOF
C26: Investment Year: 2025
C27: Capital Gain | M27: =H13 -> 1000000 | O27: =H13 -> 1000000
C28: Taxes | M28: =-(O13+O14+O16)*H13 -> -307900 | O28: =-IF(O17="Yes", 0, O27*O16) -> 0
C30: End of Deferral Period: 2026
C31: Additional Step-Up in Basis | O31: =H13*O19 -> 0
C32: Taxes | M32: 0 | O32: =-IF(O17="Yes",(H13-O31)*(O13+O14+O16), (H13-O31)*(O13+O14)) -> -307900
C34: End of 10-Year Investment Period: 2034
C35: Value of Investment | M35: ='Chart Backup'!R113 -> 2367363.675 | O35: ='Chart Backup'!R13 -> 2367363.675
C36: Tax Gain | M36: =M35-SUM(M27) -> 1367363.675 | O36: =O35-SUM(O27,O31) -> 1367363.675
C37: Taxes | M37: =-(O13+O14+O16)*M36 -> -421011.2754 | O37: =-IF(O17="Yes", 0,O36*O16) -> 0
C39: Amount Contributed Into the Fund | M39: ='Chart Backup'!H113 -> 1000000 | O39: =SUM(O27) -> 1000000
C40: Total Taxes Paid | M40: =SUM(M28,M32,M37) -> -728911.2754 | O40: =SUM(O28,O32,O37) -> -307900
C41: Gross Pre-Tax IRR | M41: ='Chart Backup'!F118 -> 0.08994856179 | O41: ='Chart Backup'!F17 -> 0.08994856179
C42: Gross After Tax IRR | M42: ='Chart Backup'!F119 -> 0.04053151309 | O42: ='Chart Backup'!$F18 -> 0.06257826984
M43: .
C45: Limitations and Disclaimers (See Page 2 for Important Information)
C46: 1 | D46: Generally, the calculator uses the highest individual tax rate. Individuals may be taxed at a lower rate.
C47: =C46+1 -> 2 | D47: Does not include certain state taxes such as millionaire taxes (e.g. California and Massachusetts).
C48: =C47+1 -> 3 | D48: Does not include tax rates post 2025 and assumes future tax rates are equal to 2025 tax rates.
C49: 4 | D49: State tax conformity to the Opportunity Zone program is subject to change.
C50: =C49+1 -> 5 | D50: Illustration is not intended to represent the rate of return on any particular investment. Actual investor experience may vary
D51: significantly including a complete loss of principal.
C52: =C50+1 -> 6 | D52: Internal Rate of Return (IRR) calculations assume cash flows occur at the end of each calendar year and represents the discount rate that
D53: would result in a net present value of zero, based on a 365-day year, for such cash flows.
C54: 7 | D54: Tax assumptions and rates are based off of information as of July 9, 2025.
C55: 8 | D55: Only for use for investments made into a Qualified Opportunity Zone Fund ("QOF") before January 1, 2027.
C57: Assumptions
C58: 1 | D58: Calculations assume that the investor can't get a federal deduction for the state taxes for both taxes paid pre and post 2026 under the
D59: Tax Cuts and Jobs Act and the One Big Beautiful Bill Act.
C60: =C58+1 -> 2 | D60: Illustration assumes that in both the QOF and Non-QOF scenarios the entire initial capital gain is reinvested and
D61: associated taxes are paid out of pocket. In the Non-QOF scenario, original capital gain tax is paid at time of reinvestment
D62: and in the QOF scenario, original capital gains tax is paid at the end of 2026.
C63: =C60+1 -> 3 | D63: Illustration assumes no income is distributed over the 10 years, and the entire return is in the form of capital appreciation.
D64: This may not be representative of an actual investment in a QOF or Non-QOF investment.
C65: 4 | D65: Illustration assumes an exit after a 10 year hold period for both the QOF and Non-QOF scenarios.
C66: 5 | D66: States that have specific state level opportunity zone requirements (e.g. CA, AL, DC) are treated as non-comforming states.
B69: Disclosure Statement
B70: The material provided herein is for informational purposes only, is not tax advice and does not address the terms of any specific transaction or any specific circumstances of an investor and is being provided based on tax assumptions and rates as of July 9, 2025. Neither CIM Group, LLC (“CIM”) nor any of its affiliates is soliciting or recommending any action based on this material. It does not constitute an offer to sell or a solicitation of an offer to buy any interests in a Qualified Opportunity Zone investment offered by CIM or any other securities, notwithstanding that such securities may currently be offered. Any such offering of interests in a Qualified Opportunity Zone investment offered by CIM will be made only in accordance with the terms and conditions set forth in, and the material provided herein is qualified in its entirety by reference to, the PPM and the governing documents and subscription agreements in respect thereof (collectively, the “Agreements”), copies of each of which will be provided to each prospective investor upon request and should be reviewed carefully before making an investment in a Qualified Opportunity Zone investment offered by CIM (an “Investment”).
B71: Each investor should consult with its own tax advisors regarding the tax consequences of the structure of its Investment. Neither CIM nor its advisors are providing any assurance, advice, or guidance regarding any of the foregoing or suggesting to any investor any particular structure for such Investment. Projected tax benefits of a Qualified Opportunity Zone investment or any particular tax structure presented are hypothetical and not indicative of future results, and there can be no assurances that any such projected tax benefits will be achieved or met. The information provided herein is for informational purposes only and is intended solely for use by such recipients potential tax benefits resulting from a Qualified Opportunity Zone Investment. The information set forth herein does not purport to be complete, nor does CIM undertake any duty to update the information set forth herein (including, without limitation, any underlying tax limitations, tax rates, disclaimers and assumptions described above). Potential tax benefits of a Qualified Opportunity Zone investment and the results of any hypothetical calculation of tax benefits will vary depending on specific circumstances of and inputs from the recipient. The information presented herein was obtained from sources that CIM believes to be reliable and was prepared in good faith by CIM in response to your request, but CIM does not warrant its completeness or accuracy. Any opinions or assumptions expressed in this document may be subject to change without notice. Except as otherwise specifically set forth herein, the information and assumptions herein are as of the date hereof. For the avoidance of doubt, any underlying tax limitations, disclaimers and assumptions described above are based upon provisions of the Internal Revenue Code and U.S. Treasury Regulations, rulings and judicial decisions as of the date hereof, all of which are subject to change (possibly with retroactive effect), so as to result in U.S. federal income tax consequences different from those described above. CIM and its affiliates do not undertake to, and will not, update any such statements, and neither the delivery of any Agreement at any time nor any Investment shall under any circumstances create an implication that the information contained herein has been updated as of any time after the date hereof.

Sheet Index (hidden)
B3: Indiv Tax Rate | C3: State Conformity | D3: Comments
A4: AK | B4: 0 | C4: N/A
A5: AL | B5: 0.05 | C5: No | D5: 5% but is it 0% for capital gain.
A6: AR | B6: 0.039 | C6: No
A7: AZ | B7: 0.025 | C7: Yes
A8: CA | B8: 0.123 | C8: No | D8: Does not include additional 1% millionaire tax.
A9: CO | B9: 0.044 | C9: Yes
A10: CT | B10: 0.0699 | C10: Yes
A11: DC | B11: 0.1075 | C11: Yes
A12: DE | B12: 0.066 | C12: Yes
A13: FL | B13: 0 | C13: N/A
A14: GA | B14: 0.0519 | C14: Yes | D14: will be reduced by .10% annually starting Jan. 1, 2025 until rate reaches 4.99%
A15: HI | B15: 0.11 | C15: No
A16: IA | B16: 0.038 | C16: Yes
A17: ID | B17: 0.053 | C17: Yes
A18: IL | B18: 0.0495 | C18: Yes
A19: IN | B19: 0.03 | C19: Yes
A20: KS | B20: 0.0558 | C20: Yes
A21: KY | B21: 0.04 | C21: Yes
A22: LA | B22: 0.03 | C22: Yes
A23: MA | B23: 0.05 | C23: No | D23: Except for STCG at 8.5%, 3% capital gains on start up companies, and additional income surcharge of 4% for millionaires
A24: MD | B24: 0.0575 | C24: Yes
A25: ME | B25: 0.0715 | C25: Yes
A26: MI | B26: 0.0425 | C26: Yes
A27: MN | B27: 0.0985 | C27: Yes
A28: MO | B28: 0.047 | C28: Yes
A29: MS | B29: 0.044 | C29: No
A30: MT | B30: 0.059 | C30: Yes
A31: NC | B31: 0.0425 | C31: No
A32: ND | B32: 0.025 | C32: Yes
A33: NE | B33: 0.052 | C33: Yes
A34: NH | B34: 0.03 | C34: N/A | D34: is this rate only for interest and dividends?
A35: NJ | B35: 0.1075 | C35: Yes
A36: NM | B36: 0.059 | C36: Yes
A37: NV | B37: 0 | C37: N/A
A38: NY | B38: 0.109 | C38: No
A39: OH | B39: 0.035 | C39: Yes
A40: OK | B40: 0.0475 | C40: Yes
A41: OR | B41: 0.099 | C41: Yes
A42: PA | B42: 0.0307 | C42: Yes
A43: RI | B43: 0.0599 | C43: Yes
A44: SC | B44: 0.062 | C44: Yes
A45: SD | B45: 0 | C45: N/A
A46: TN | B46: 0 | C46: N/A
A47: TX | B47: 0 | C47: N/A
A48: UT | B48: 0.045 | C48: Yes
A49: VA | B49: 0.0575 | C49: Yes
A50: VT | B50: 0.0875 | C50: Yes
A51: WA | B51: 0 | C51: No
A52: WI | B52: 0.0765 | C52: Yes
A53: WV | B53: 0.0482 | C53: Yes
A54: WY | B54: 0 | C54: N/A

Sheet PersonalIncomeTaxRate20241 (hidden)
A1: Last Run: May 3, 2024
A3: Personal Income Tax Rate--2024
A6: Tax Type:Personal Income
A8: This chart shows the personal income tax rate for the 2024 tax year.
A13: State | B13: Personal Income Tax Rate--2024 | C13: Authority | D13: Editorial Reference
A14: AK | B14: N/A | C14: N/A | D14: N/A
A15: AL | B15: Ranges from 2% to 5%. Single persons, heads of family, and married persons filing separate returns: 2% on $0 to $500; 4% on $501 to $3,000; 5% on $3,001 and over. Married filing joint return: 2% on $0 to $1000; 4% on $1001 to $6,000; 5% on $6,001 and over. | C15: Ala. Code §40-18-5 | D15: 58,550
A16: AR | B16: Ranges from 0% to 4.4%. Adjusted for inflation. The personal income tax rates for every resident, individual, trust or estate having net income less than or equal to $87,000 are as follows: from $0 to $5,099, the tax rate is 0%; from $5,100 to $10,299, the tax rate is 2%; from $10,300 to $14,699, the tax rate is 3%; from $14,700 to $24,299, the tax rate is 3.4%; and from $24,300 to $87,000, the tax rate is 4.4%. The rates for every resident, individual, trust or estate having net income greater than $87,000 are as follows: from $0 to $4,400, the tax rate is 2%; from $4,401 to $8,800, the tax rate is 4%; and from $8,801 and above, the tax rate is 4.4%. Every resident, individual, trust or estate having net income greater than or equal to $87,001 but not greater than $90,800 must reduce the amount of income tax due by deducting a statutory bracket adjustment amount. | C16: Ark. Code Ann. §26-51-201(a)(2)(A);Ark. Code Ann. §26-51-201(a)(2)(B);Ark. Code Ann. §26-51-201(a)(2)(C);Ark. Code Ann. §26-51-201(a)(3);Ark. Code Ann. §26-51-201(d)(1) | D16: 58,550
A17: AZ | B17: 2.5% For tax year 2023 and beyond, there are no optional or X and Y tax tables to post due to Arizona's flat tax rate of 2.5%. | C17: Ariz. Rev. Stat. Ann. §43-1011(A)(7);News and Announcements, Ariz. Dept. of Rev., 12/14/2022 | D17: 58,550
A18: CA | B18: Ranges from 1% to 12.3%. Also, there is an additional tax of 1% on taxable income exceeding $1 million. This additional tax is the mental heath services tax and is also known as the millionaire tax. | C18: Cal. Rev. & Tax. Cd. §17041(a);Cal. Rev. & Tax. Cd. §17043;Cal. Constitution Art. XIII §36(f)(2);Cal. Constitution Art. XIII §36(f)(3) | D18: 58,550
A19: CO | B19: 4.4%. | C19: Colo. Rev. Stat. §39-22-104(1.7)(c) | D19: 58,550
A20: CT | B20: 2%, 4.5%, 5.5%, 6%, 6.5%, 6.9%, 6.99%. For single filers, if Connecticut taxable income is not over $10,000, the tax rate is 2%. If taxable income is over $10,000 but not over $50,000, the tax is $200, plus 4.5% of the excess over $10,000. If taxable income is over $50,000 but not over $100,000, the tax is $2,000, plus 5.5% of the excess over $50,000. If taxable income is over $100,000 but not over $200,000, the tax is $4,750 plus 6% of the excess over $100,000. If taxable income is over $200,000 but not over $250,000, the tax is $10,750 plus 6.5% of the excess over $200,000. If taxable income is over $250,000 but not over $500,000, the tax is $14,000 plus 6.9% of the excess over $250,000. If taxable income is over $500,000, the tax is $31,250 plus 6.99% of the excess over $500,000. Future rates: There is no enacted rate change at this time. | C20: Conn. Gen. Stat. §12-700 | D20: 58,550
A21: DC | B21: Ranges from 4% to 10.75%. | C21: D.C. Code Ann. §47-1806.03 | D21: 58,550
A22: DE | B22: Ranges from 2.2% to 6.6%. Taxable income of up to $2,000 = $0 tax; taxable income of over $2,000 but not over $5,000, tax = 2.2% on amounts over $2,000; taxable income of over $5,000 but not over $10,000, tax = 3.9% on amounts over $5,000; taxable income of over $10,000 but not over $20,000, tax = 4.8% on amounts over $10,000; taxable income of over $20,000 but not over $25,000, tax = 5.2% on amounts over $20,000; taxable income of over $25,000 but not over $60,000, tax = 5.55% on amounts over $25,000; taxable income of over $60,000, 6.6% on amounts over $60,000. | C22: Del. Code Ann. 30 §1102(a)(14) | D22: 58,550
A23: FL | B23: N/A | C23: N/A | D23: N/A
A24: GA | B24: Flat rate of 5.39%. To be reduced by 0.10% annually beginning on January 1, 2025, until the rate reaches 4.99%. | C24: Ga. Code Ann. §48-7-20 (a.1)(1) | D24: 58,550
A25: HI | B25: Ranges from 1.4% to 11%. | C25: Haw. Rev. Stat. §235-51 | D25: 58,550
A26: IA | B26: Ranges from 4.40% to 5.70%. | C26: Iowa Code §422.5(1);2024 Interest Rates and Income Tax Brackets, Iowa Dept. of Rev., 10/25/2023 | D26: 58,550
A27: ID | B27: 5.695%. Updated:04/10/2024 | C27: Idaho Code §63-3024 | D27: 58,550
A28: IL | B28: 4.95%. | C28: ILCS Chapter 35 §5/201(b)(5.2) | D28: 58,550
A29: IN | B29: 3.05%. | C29: Ind. Code §6-3-2-1 | D29: 58,550
A30: KS | B30: Ranges from 3.1% to 5.7%. Single filers: If the taxable income (TI) is not over $15,000, the tax = 3.1% of Kansas taxable income; if the TI is over $15,000 but not over $30,000, the tax = $465 plus 5.25% of the excess over $15,000; if the TI is over $30,000, the tax = $1,252.50 plus 5.7% of the excess over $30,000. Married filing jointly: If the taxable income (TI) is not over $30,000, the tax = 3.1% of Kansas taxable income If the TI is over $30,000 but not over $60,000, the tax = $930 plus 5.25% of excess over $30,000 If the TI is over $60,000, the tax = $2,505 plus 5.7% of excess over $60,000. | C30: Kan. Stat. Ann. §79-32,110(a) | D30: 58,550
A31: KY | B31: 4%. For tax years beginning on or after January 1, 2024, the rate is 4% of net income. | C31: Ky. Rev. Stat. Ann. §141.020(2) | D31: 58,550
A32: LA | B32: Ranges from 1.85% to 4.25%. The tax rates for individuals are: 1.85% tax on the first $12,500 of net income exceeding allowable tax credits; 3.5% tax on the next $37,500 of net income; and 4.25%% tax on the amount of net income exceeding $50,000. | C32: La. Rev. Stat. Ann. §47:32(A) | D32: 58,550
A33: MA | B33: 5%. Except for short-term capital gains taxed at 8.5%, gains on collectibles taxed at 12%, and capital gains earned on certain investments in start-up companies taxed at 3%. An additional 4% state income surtax is imposed on that portion of annual taxable income in excess of $1 million applicable to tax years beginning on or after January 1, 2023. | C33: Mass. Gen. L. Chapter 62 §4;Mass. Gen. L. Chapter 62 §5A(a);Reduction in Personal Income Tax Rate, Exec. Office for Adm. and Finance, 12/13/2019;Massachusetts Technical Information Release No. 23-12, 11/15/2023; Instructions to Form 1, Massachusetts Resident Income Tax Form,59,505 | D33: 58,550
A34: MD | B34: Ranges from 2% to 5.75%. Individuals other than spouses filing jointly, surviving spouses, or heads of household: 2% of Maryland taxable income of $1 through $1,000; 3% of Maryland taxable income of $1,001 through $2,000; 4% of Maryland taxable income of $2,001 through $3,000; 4.75% of Maryland taxable income of $3,001 through $100,000; 5% of Maryland taxable income of $100,001 through $125,000; 5.25% of Maryland taxable income of $125,001 through $150,000; 5.5% of Maryland taxable income of $150,001 through $250,000; 5.75% of Maryland taxable income in excess of $250,000. Spouses filing jointly, surviving spouses, or heads of household: 2% of Maryland taxable income of $1 through $1,000; 3% of Maryland taxable income of $1,001 through $2,000; 4% of Maryland taxable income of $2,001 through $3,000; 4.75% of Maryland taxable income of $3,001 through $150,000; 5% of Maryland taxable income of $150,001 through $175,000; 5.25% of Maryland taxable income of $175,001 through $225,000; 5.5% of Maryland taxable income of $225,001 through $300,000; 5.75% of Maryland taxable income in excess of $300,000. | C34: Md. Code Ann. Tax-Gen. §10-105(a) | D34: 58,550
A35: ME | B35: Ranges from 5.8% to 7.15%. Single individuals and married persons filing separate returns: a 5.8% rate is imposed on Maine taxable income less than $26,050; a 6.75% rate is imposed on Maine taxable income of $26,050 or more; and a 7.15% rate is imposed on Maine taxable income of $61,600 or more. Heads of households: a 5.8% rate is imposed on Maine taxable income less than $39,050; a 6.75% rate is imposed on Maine taxable income of $39,050 or more; and a 7.15% rate is imposed on Maine taxable income of $92,450 or more. Joint filers and surviving spouses: a 5.8% rate is imposed on Maine taxable income less than $52,100; a 6.75% rate is imposed on Maine taxable income of $52,100 or more; and a 7.15% rate is imposed on Maine taxable income of $123,250 or more. | C35: Me. Rev. Stat. Ann. 36 §5111 | D35: 58,550
A36: MI | B36: 4.25%. | C36: Mich. Comp. Laws Ann. §206.51(1)(b);News release, Mich. Dept. Treas., 02/28/2024;Notice: 4.25% Income Tax Rate for Individuals and Fiduciaries in 2024 Tax Year, Mich. Dept. Treas., 02/28/2024 | D36: 58,550
A37: MN | B37: Rate ranges from 5.35% to 9.85%, depending on taxpayer's taxable net income. Income brackets, based on federal filing status, are adjusted annually for inflation. | C37: Minn. Stat. §290.06, Subd. 2c;Minn. Stat. §290.06, Subd. 2d | D37: 58,550
A38: MO | B38: Ranges from 2% to 4.8%. | C38: Mo. Rev. Stat. §143.011;2024 Missouri Withholding Tax Formula, Missouri Department of Revenue, 11/29/2023; Employer's Tax Guide, 14,510 | D38: 58,550
A39: MS | B39: Ranges from 0% to 4.7%. No tax on the first $10,000 of taxable income; taxable income in excess of $10,000 is taxed at 4.7%. | C39: Miss. Code Ann. §27-7-5(1) | D39: 58,550
A40: MT | B40: Rates range from 1% to 5.9%. Montana personal income tax is imposed based on seven income brackets, with rates ranging from 1% to 5.9%. These rates are adjusted annually for inflation. | C40: Mont. Code Ann. §15-30-2103;Montana Personal Income Tax Rates and Tables, 10/22/2022 | D40: 58,550
A41: NC | B41: 4.5%. The tax rate will decrease to 4.25% in 2025, and 3.99% for post-2025 tax years. | C41: N.C. Gen. Stat. §105-153.7 | D41: 58,550
A42: ND | B42: Rates range from 1.95% to 2.50%. Single taxpayers have no tax on the first $44,725 of income; married taxpayers filing jointly and surviving spouses have no tax on the first $74,750 of income; married taxpayers filing separately have no tax on the first $37,375 of income; heads of households have no tax on the first $59,950 of income; and estates and trusts have no tax on the first $3,000 of income. Rates above these thresholds range from 1.95% to 2.5%. | C42: N.D. Cent. Code §57-38-30.3 | D42: 58,550
A43: NE | B43: Rates range from 2.46% to 5.84% (before Jan. 1, 2025). The top rate is reduced to 5.20% for the 2025 tax year; 4.55% for the 2026 tax year; and 3.99% for the tax years on or after January 1, 2027. | C43: Neb. Rev. Stat. §77-2715.03(2) | D43: 58,550
A44: NH | B44: 4%. For all taxable periods ending on or after December 31, 2023, the rate of tax is 4%. Tax applies to interest and dividends only. | C44: N.H. Rev. Stat. Ann. §77:1 | D44: 58,550
A45: NJ | B45: Ranges from 1.4% to 10.75%. Taxable income (TI) not over $20,000-1.400% of taxable income; TI over $20,000 but not over $35,000-$280 plus 1.750% of the excess over $20,000; TI over $35,000 but not over $40,000-$542.50 plus 3.500% of the excess over $35,000; TI over $40,000 but not over $75,000-$717.50 plus 5.525% of the excess over $40,000; TI over $75,000 but not over $500,000-$2,651.25 plus 6.370% of the excess over $75,000; TI over $500,000-$29,723.75 plus 8.97% of the excess over $500,000; TI over $1 million-$74,574 plus 10.75% of the excess over $1 million. | C45: N.J. Rev. Stat. §54A:2-1(a)(6);N.J. Rev. Stat. §54A:2-1(b)(6) | D45: 58,550
A46: NM | B46: Ranges from 1.7% to 5.9%. | C46: NMSA 1978 §7-2-7(A)-NMSA 1978 §7-2-7(D) | D46: 58,550
A47: NV | B47: N/A | C47: N/A | D47: N/A
A48: NY | B48: Ranges from 4% to 10.90%. For the 2024 tax year (unmarried individuals, married individuals filing separate returns, and estates and trusts), if New York taxable income (TI) is not over $8,500, the tax is 4%; If TI is over $8,500 but not over $11,700, the tax is $340 plus 4.5% of excess over $8,500; If TI is over $11,700 but not over $13,900, the tax is $484 plus 5.25% of excess over $11,700; If TI is over $13,900 but not over $80,650, the tax is $600 plus 5.50% of excess over $13,900; If TI is over $80,650 but not over $215,400, the tax is $4,271 plus 6% of excess over $80,650; If TI is over $215,400, but not over $1,077,550, the tax is $12,356 plus 6.85% of excess over $215,400; If TI is over $1,077,550, but not over $5,000,000, the tax is $71,413 plus 9.65% of excess over $1,077,550; If TI is over $5,000,000, but not over $25,000,000, the tax is $449,929 plus 10.30% of excess over $5,000,000; If TI is over $25,000,000, the tax is $2,509,929 plus 10.90% of excess over $25,000,000. | C48: N.Y. Tax Law §601(a) | D48: 58,550
A49: OH | B49: Ranges from 2.75% to 3.5%. | C49: Ohio Rev. Code Ann. §5747.02(A)(3); L. 2023, H33, § 757.50, eff. 07/04/2023 | D49: 58,550
A50: OK | B50: Ranges from 0.25% to 4.75%. For single filers: 0.25% on the first $1,000 or part thereof; 0.75% on next $1,500; 1.75% on next $1,250; 2.75% on next $1,150; 3.75% on next $2,300; and 4.75% on the remainder. | C50: Okla. Stat. 68 §2355(C) | D50: 58,550
A51: OR | B51: Ranges from 4.75% to 9.9%. | C51: Or. Rev. Stat. §316.037(1) | D51: 58,550
A52: PA | B52: 3.07%. | C52: Pa. Stat. Ann. 72 §7302 | D52: 58,550
A53: RI | B53: Ranges from 3.75% to 5.99%. | C53: R.I. Gen. Laws §44-30-2.6(c)(3)(A) | D53: 58,550
A54: SC | B54: Ranges from 3% to 6.3%. The marginal rate will decrease by one-tenth of one percent each year until the top marginal tax rate is 6%, provided certain revenue conditions are met. | C54: S.C. Code Ann. §12-6-510(A);SC Withholding Tables Adjusted for Tax Cuts, S.C. Dept. of Rev., 12/15/2022 | D54: 58,550
A55: SD | B55: N/A | C55: N/A | D55: N/A
A56: TN | B56: N/A | C56: N/A | D56: N/A
A57: TX | B57: N/A | C57: N/A | D57: N/A
A58: UT | B58: 4.55%. A flat tax of 4.55% is imposed on individuals, estates, and trusts. | C58: Utah Code Ann. §59-10-104(1);Utah Code Ann. §59-10-104(2);Utah Code Ann. §59-10-205(1) | D58: 58,550
A59: VA | B59: Ranges from 2% to 5.75%. | C59: Va. Code Ann. §58.1-320 | D59: 58,550
A60: VT | B60: Ranges from 3.35% to 8.75%. Rate brackets are adjusted annually for inflation. Effective July 1, 2024, in addition to the income tax, a 0.44% tax is imposed on wages and a 0.11% tax is imposed on self-employment income to fund child care. Employers will be responsible for paying at least 75% of the 0.44% tax on wages and the remainder may be withheld from employees. | C60: Vt. Stat. Ann. 32 §5822(a); Form IN-111 Instructions-Individual Income Tax Return Booklet,59,507 | D60: 58,550
A61: WA | B61: N/A | C61: N/A | D61: N/A
A62: WI | B62: Rates range from 3.5% to 7.65%. | C62: Wis. Stat. §71.06(1q);Wis. Stat. §73.03(71)(a) | D62: 58,550
A63: WV | B63: Ranges from 2.36% to 5.12%. Updated:03/09/2023 | C63: W. Va. Code §11-21-4g | D63: 58,550
A64: WY | B64: N/A | C64: N/A | D64: N/A
A66: © 2024 Thomson Reuters/Tax & Accounting. All Rights Reserved.

Sheet PersonalIncomeTaxRate2025 (hidden)
A1: Last Run: Jul 9, 2025
A3: Personal Income Tax Rate--2025
A6: Tax Type:Personal Income
A8: This chart shows the personal income tax rate for the 2025 tax year.
A13: State | B13: Personal Income Tax Rate--2025 | C13: Authority | D13: Editorial Reference | E13: Changed
A14: AK | B14: N/A | C14: o N/A | D14: o N/A
A15: AL | B15: Ranges from 2% to 5%. Single persons, heads of family, and married persons filing separate returns: 2% on $0 to $500; 4% on $501 to $3,000; 5% on $3,001 and over. Married filing joint return: 2% on $0 to $1000; 4% on $1001 to $6,000; 5% on $6,001 and over. | C15: Ala. Code § 40-18-5 | D15: 58,550
A16: AR | B16: Ranges from 0% to 3.9%. Adjusted for inflation. The personal income tax rates for every resident, individual, trust or estate having net income less than or equal to $89,600 are as follows: from $0 to $5,299, the tax rate is 0%; from $5,300 to $10,599, the tax rate is 2%; from $10,600 to $15,099, the tax rate is 3%; from $15,100 to $24,999, the tax rate is 3.4%; and from $25,000 to $89,600, the tax rate is 3.9%. The rates for every resident, individual, trust or estate having net income greater than $89,600 are as follows: from $0 to $4,500, the tax rate is 2%; and from $4,501 and above, the tax rate is 3.9%. Every resident, individual, trust or estate having net income greater than or equal to $89,601 but not greater than $92,700 must reduce the amount of income tax due by deducting a statutory bracket adjustment amount. | C16: Ark. Code Ann. § 26-51-201(a)(2)(A) | D16: 58,550
C17: Ark. Code Ann. § 26-51-201(a)(2)(B)
C18: Ark. Code Ann. § 26-51-201(a)(2)(C)
C19: Ark. Code Ann. § 26-51-201(a)(3)
C20: Ark. Code Ann. § 26-51-201(d)(1)
A21: AZ | B21: 2.5% For tax year 2023 and beyond, there are no optional or X and Y tax tables to post due to Arizona's flat tax rate of 2.5%. | C21: Ariz. Rev. Stat. Ann. § 43-1011(A)(7) | D21: 58,550
C22: o News and Announcements, Ariz. Dept. of Rev., 12/14/2022
A23: CA | B23: Ranges from 1% to 12.3%. Also, there is an additional tax of 1% on taxable income exceeding $1 million. This additional tax is the mental heath services tax and is also known as the millionaire tax. | C23: Cal. Rev. & Tax. Cd. § 17041(a) | D23: 58,550
C24: Cal. Rev. & Tax. Cd. § 17043
C25: Cal. Constitution Art. XIII § 36(f)(2)
C26: Cal. Constitution Art. XIII § 36(f)(3)
A27: CO | B27: 4.4%. The 2025 rate may be reduced by a specified percentage for a designated excess range if there is surplus tax revenue and the amount of the excess is greater than $300 million. | C27: Colo. Rev. Stat. § 39-22-104(1.7)(c) | D27: 58,550
C28: Colo. Rev. Stat. § 39-22-627(1)(a)
A29: CT | B29: 2%, 4.5%, 5.5%, 6%, 6.5%, 6.9%, 6.99%. For single filers, if Connecticut taxable income is not over $10,000, the tax rate is 2%. If taxable income is over $10,000 but not over $50,000, the tax is $200, plus 4.5% of the excess over $10,000. If taxable income is over $50,000 but not over $100,000, the tax is $2,000, plus 5.5% of the excess over $50,000. If taxable income is over $100,000 but not over $200,000, the tax is $4,750 plus 6% of the excess over $100,000. If taxable income is over $200,000 but not over $250,000, the tax is $10,750 plus 6.5% of the excess over $200,000. If taxable income is over $250,000 but not over $500,000, the tax is $14,000 plus 6.9% of the excess over $250,000. If taxable income is over $500,000, the tax is $31,250 plus 6.99% of the excess over $500,000. Future rates: There is no enacted rate change at this time. | C29: Conn. Gen. Stat. § 12-700 | D29: 58,550
A30: DC | B30: Ranges from 4% to 10.75%. | C30: D.C. Code Ann. § 47-1806.03 | D30: 58,550
A31: DE | B31: Ranges from 2.2% to 6.6%. Taxable income of up to $2,000 = $0 tax; taxable income of over $2,000 but not over $5,000, tax = 2.2% on amounts over $2,000; taxable income of over $5,000 but not over $10,000, tax = 3.9% on amounts over $5,000; taxable income of over $10,000 but not over $20,000, tax = 4.8% on amounts over $10,000; taxable income of over $20,000 but not over $25,000, tax = 5.2% on amounts over $20,000; taxable income of over $25,000 but not over $60,000, tax = 5.55% on amounts over $25,000; taxable income of over $60,000, 6.6% on amounts over $60,000. | C31: Del. Code Ann. 30 § 1102(a)(14) | D31: 58,550
A32: FL | B32: N/A | C32: o N/A | D32: o N/A
A33: GA | B33: Flat rate of 5.19%To be reduced by 0.10% annually beginning on January 1, 2026, until the rate reaches 4.99%. | C33: Ga. Code Ann. § 48-7-20 (a.1)(1) | D33: 58,550
A34: HI | B34: Ranges from 1.4% to 11%. | C34: Haw. Rev. Stat. § 235-51 | D34: 58,550
A35: IA | B35: Flat tax rate of 3.8%. | C35: o Iowa Code § 422.5(1)Iowa Code § 422.5(1)(a) | D35: o 58,550
C36: o 2023 Changes to Iowa Individual Income Tax, 01/10/2023
A37: ID | B37: 5.3%. | C37: Idaho Code § 63-3024 | D37: 58,550
A38: IL | B38: 4.95%. | C38: ILCS Chapter 35 § 5/201(b)(5.2) | D38: 58,550
A39: IN | B39: 3%. | C39: Ind. Code § 6-3-2-1 | D39: 58,550
A40: KS | B40: Ranges from 5.2% to 5.58%. Single filers: if the taxable income (TI) is not over $23,000, the tax is 5.2% of Kansas taxable income; if the TI is over $23,000, the tax is $1,196 plus 5.58% of the excess over $23,000. Married filing jointly: if the taxable income (TI) is not over $46,000, the tax is 5.2% of Kansas taxable income; if the TI is over $46,000, the tax is $2,392 plus 5.58% of the excess over $46,000. | C40: Kan. Stat. Ann. § 79-32,110(a) | D40: 58,550
A41: KY | B41: 4%. The rate for tax year 2025 remains at 4% of net income. | C41: o Ky. Rev. Stat. Ann. § 141.020(2) | D41: o 58,550
A42: LA | B42: 3%. The tax rate is 3%, applicable to taxable periods beginning on and after January 1, 2025. | C42: La. Rev. Stat. Ann. § 47:32(A) | D42: 58,550
A43: MA | B43: 5%. Except for short-term capital gains taxed at 8.5%, long-term gains on collectibles taxed at 12%, and capital gains earned on certain investments in start-up companies taxed at 3%. An additional 4% state income surtax is imposed on that portion of annual taxable income in excess of $1 million applicable to tax years beginning on or after January 1, 2023. | C43: Mass. Gen. L. Chapter 62 § 4 | D43: 58,550
C44: Mass. Gen. L. Chapter 62 § 5A(a)
C45: o Massachusetts Technical Information Release No. 24-4 , 05/30/2024
C46: o Reduction in Personal Income Tax Rate, Exec. Office for Adm. and Finance, 12/13/2019
C47: o Massachusetts Technical Information Release No. 23-12 , 11/15/2023
C48: Instructions to Form 1, Massachusetts Resident Income Tax Form,59,505
A49: MD | B49: Ranges from 2% to 5.75%. Individuals other than spouses filing jointly, surviving spouses, or heads of household: 2% of Maryland taxable income of $1 through $1,000; 3% of Maryland taxable income of $1,001 through $2,000; 4% of Maryland taxable income of $2,001 through $3,000; 4.75% of Maryland taxable income of $3,001 through $100,000; 5% of Maryland taxable income of $100,001 through $125,000; 5.25% of Maryland taxable income of $125,001 through $150,000; 5.5% of Maryland taxable income of $150,001 through $250,000; 5.75% of Maryland taxable income in excess of $250,000. Spouses filing jointly, surviving spouses, or heads of household: 2% of Maryland taxable income of $1 through $1,000; 3% of Maryland taxable income of $1,001 through $2,000; 4% of Maryland taxable income of $2,001 through $3,000; 4.75% of Maryland taxable income of $3,001 through $150,000; 5% of Maryland taxable income of $150,001 through $175,000; 5.25% of Maryland taxable income of $175,001 through $225,000; 5.5% of Maryland taxable income of $225,001 through $300,000; 5.75% of Maryland taxable income in excess of $300,000. | C49: Md. Code Ann. Tax-Gen. § 10-105(a) | D49: 58,550
A50: ME | B50: Ranges from 5.8% to 7.15%. Single individuals and married persons filing separate returns: a 5.8% rate is imposed on Maine taxable income less than $26,800; a 6.75% rate is imposed on Maine taxable income of $26,800 or more; and a 7.15% rate is imposed on Maine taxable income of $63,450 or more. Heads of households: a 5.8% rate is imposed on Maine taxable income less than $40,200; a 6.75% rate is imposed on Maine taxable income of $40,200 or more; and a 7.15% rate is imposed on Maine taxable income of $95,150 or more. Joint filers and surviving spouses: a 5.8% rate is imposed on Maine taxable income less than $53,600; a 6.75% rate is imposed on Maine taxable income of $53,600 or more; and a 7.15% rate is imposed on Maine taxable income of $126,900 or more. | C50: Me. Rev. Stat. Ann. 36 § 5111 | D50: 58,550
A51: MI | B51: 4.25%. | C51: Mich. Comp. Laws Ann. § 206.51(1)(b) | D51: 58,550
C52: o New Developments for Tax Year 2024, Mich. Dept. Teas., 01/17/2025
C53: o Notice: 4.25% Income Tax Rate for Individuals and Fiduciaries in 2025 Tax Year, Mich. Dept. Treas., 05/01/2025
A54: MN | B54: Rate ranges from 5.35% to 9.85%, depending on taxpayer's taxable net income. Income brackets, based on federal filing status, are adjusted annually for inflation. | C54: Minn. Stat. § 290.06, Subd. 2c | D54: 58,550
C55: Minn. Stat. § 290.06, Subd. 2d
A56: MO | B56: Ranges from 2% to 4.7%. | C56: Mo. Rev. Stat. § 143.011 | D56: 58,550
C57: News Release, Office of Governor Michael L. Parson, 07/30/2024
A58: MS | B58: Ranges from 0% to 4.4%. No tax on the first $10,000 of taxable income; taxable income in excess of $10,000 is taxed at 4.4%. | C58: Miss. Code Ann. § 27-7-5(1) | D58: 58,550
A59: MT | B59: Rates range from 4.7% to 5.9%. Montana personal income tax is imposed based on two income brackets, with rates of 4.7% and 5.9%. The two bracket amounts are adjusted annually for inflation. | C59: Mont. Code Ann. § 15-30-2103 | D59: 58,550
C60: o 2025 Montana Personal Income Tax Rates and Tables, 12/01/2024
A61: NC | B61: 4.25%. The tax rate will decrease to 3.99% for post-2025 tax years. | C61: N.C. Gen. Stat. § 105-153.7 | D61: 58,550
A62: ND | B62: Rates range from 1.95% to 2.50%. Single taxpayers have no tax on the first $44,725 of income; married taxpayers filing jointly and surviving spouses have no tax on the first $74,750 of income; married taxpayers filing separately have no tax on the first $37,375 of income; heads of households have no tax on the first $59,950 of income; and estates and trusts have no tax on the first $3,000 of income. Rates above these thresholds range from 1.95% to 2.5%. | C62: N.D. Cent. Code § 57-38-30.3 | D62: 58,550
A63: NE | B63: Rates range from 2.46% to 5.20% (before Jan. 1, 2026). The top rate is reduced to 4.55% for the 2026 tax year; and 3.99% for the tax years on or after January 1, 2027. | C63: Neb. Rev. Stat. § 77-2715.03(2) | D63: 58,550
A64: NH | B64: 3%. Effective January 1, 2025, for taxable periods beginning after December 31, 2024, the interest and dividends tax is repealed. Accordingly, for taxable periods beginning after December 31, 2024, interest and dividends tax is no longer computed on a taxpayer's gross income from interest and dividends. The annual tax on income derived from interest and dividends is 3% percent for all taxable periods ending on December 31, 2024. | C64: N.H. Rev. Stat. Ann. § 77:1, III | D64: 58,550
C65: N.H. Rev. Stat. Ann. § 77:3, I
C66: o New Hampshire Technical Information Release No. 2025-001 , 01/21/2025
A67: NJ | B67: Ranges from 1.4% to 10.75%. Taxable income (TI) not over $20,000-1.400% of taxable income; TI over $20,000 but not over $35,000-$280 plus 1.750% of the excess over $20,000; TI over $35,000 but not over $40,000-$542.50 plus 3.500% of the excess over $35,000; TI over $40,000 but not over $75,000-$717.50 plus 5.525% of the excess over $40,000; TI over $75,000 but not over $500,000-$2,651.25 plus 6.370% of the excess over $75,000; TI over $500,000-$29,723.75 plus 8.97% of the excess over $500,000; TI over $1 million-$74,574 plus 10.75% of the excess over $1 million. | C67: N.J. Rev. Stat. § 54A:2-1(a)(6) | D67: 58,550
C68: N.J. Rev. Stat. § 54A:2-1(b)(6)
A69: NM | B69: Ranges from 1.5% to 5.9%. | C69: NMSA 1978 § 7-2-7(A)-NMSA 1978 § 7-2-7(D) | D69: 58,550
A70: NV | B70: N/A | C70: o N/A | D70: o N/A
A71: NY | B71: Ranges from 4% to 10.90%. For the 2025 tax year (unmarried individuals, married individuals filing separate returns, and estates and trusts), if New York taxable income (TI) is not over $8,500, the tax is 4%; If TI is over $8,500 but not over $11,700, the tax is $340 plus 4.5% of excess over $8,500; If TI is over $11,700 but not over $13,900, the tax is $484 plus 5.25% of excess over $11,700; If TI is over $13,900 but not over $80,650, the tax is $600 plus 5.50% of excess over $13,900; If TI is over $80,650 but not over $215,400, the tax is $4,271 plus 6% of excess over $80,650; If TI is over $215,400, but not over $1,077,550, the tax is $12,356 plus 6.85% of excess over $215,400; If TI is over $1,077,550, but not over $5,000,000, the tax is $71,413 plus 9.65% of excess over $1,077,550; If TI is over $5,000,000, but not over $25,000,000, the tax is $449,929 plus 10.30% of excess over $5,000,000; If TI is over $25,000,000, the tax is $2,509,929 plus 10.90% of excess over $25,000,000. | C71: N.Y. Tax Law § 601(a) | D71: 58,550
A72: OH | B72: Ranges from 2.75% to 3.5%. | C72: Ohio Rev. Code Ann. § 5747.02(A)(3) | D72: 58,550
A73: OK | B73: Ranges from 0.25% to 4.75%. For single filers: 0.25% on the first $1,000 or part thereof; 0.75% on next $1,500; 1.75% on next $1,250; 2.75% on next $1,150; 3.75% on next $2,300; and 4.75% on the remainder. | C73: Okla. Stat. 68 § 2355(C) | D73: 58,550
A74: OR | B74: Ranges from 4.75% to 9.9%. | C74: Or. Rev. Stat. § 316.037(1) | D74: 58,550
A75: PA | B75: 3.07%. | C75: Pa. Stat. Ann. 72 § 7302 | D75: 58,550
A76: RI | B76: Ranges from 3.75% to 5.99%. | C76: R.I. Gen. Laws § 44-30-2.6(c)(3)(A) | D76: 58,550
A77: SC | B77: Ranges from 3% to 6.2%.The marginal rate will decrease by one-tenth of one percent each year until the top marginal tax rate is 6%, provided certain revenue conditions are met. | C77: S.C. Code Ann. § 12-6-510(A) | D77: 58,550
C78: o SC Withholding Tables Adjusted for Tax Cuts, S.C. Dept. of Rev., 12/15/2022
A79: SD | B79: N/A | C79: o N/A | D79: o N/A
A80: TN | B80: N/A | C80: o N/A | D80: o N/A
A81: TX | B81: N/A | C81: o N/A | D81: o N/A
A82: UT | B82: 4.50%. For taxable years beginning on or after January 1, 2025, the rate has decreased from 4.55% to 4.50%. A flat tax of 4.50% is imposed on individuals, estates, and trusts. | C82: Utah Code Ann. § 59-10-104(1) | D82: 58,550
C83: Utah Code Ann. § 59-10-104(2)
C84: Utah Code Ann. § 59-10-205(1)
A85: VA | B85: Ranges from 2% to 5.75%. | C85: Va. Code Ann. § 58.1-320 | D85: 58,550
A86: VT | B86: Ranges from 3.35% to 8.75%. Rate brackets are adjusted annually for inflation. Effective July 1, 2024, in addition to the income tax, a 0.44% tax is imposed on wages and a 0.11% tax is imposed on self-employment income to fund child care. Employers will be responsible for paying at least 75% of the 0.44% tax on wages and the remainder may be withheld from employees. | C86: Vt. Stat. Ann. 32 § 5822(a) | D86: 58,550
C87: Form IN-111 Instructions-Individual Income Tax Return Booklet,59,507
A88: WA | B88: N/A | C88: o N/A | D88: o N/A
A89: WI | B89: Rates range from 3.5% to 7.65%. | C89: Wis. Stat. § 71.06(1q) | D89: 58,550
C90: Wis. Stat. § 73.03(71)(a)
A91: WV | B91: Ranges from 2.22% to 4.82%. | C91: W. Va. Code § 11-21-4i | D91: 58,550
A92: WY | B92: N/A | C92: o N/A | D92: o N/A
A94: © 2025 Thomson Reuters/Tax & Accounting. All Rights Reserved.

Sheet State Conformity (hidden)
A1: CCH® State Tax SmartCharts
A3: Business Income Tax> Calculation of Income> Modifications> Opportunity Zones—IRC §1400Z-1 and IRC §1400Z-2
A5: Taxpayers may elect to defer gain on the sale or exchange of property if the taxpayer reinvests the gain in a qualified opportunity zone under IRC Secs. 1400Z-1 and 1400Z-2. The proceeds must be reinvested within 180 days of the sale or exchange in a qualified opportunity zone fund. The gain may be deferred until the earlier of: • the tax year in which the investment is sold or exchanged; or • December 31, 2026. A 10% exclusion of the deferred gain is allowed if the investment is held for at least 5 years. The exclusion amount is 15% if held for more than 7 years. If held for at least 10 years, the taxpayer can treat the basis on the date of sale as the fair market value. A qualified opportunity zone is a low income community designated as such by the U.S. Treasury after being nominated by a state governor. This chart shows whether each state and the District of Columbia recognizes federal deferral of gain on opportunity zone investments.
A6: JURISDICTION | B6: OPPORTUNITY ZONES—IRC §1400Z-1 AND IRC §1400Z-2 | C6: COMMENT | D6: CITATION | E6: CCH EXPLANATION
A7: Alabama | B7: Yes, if investment is in an approved Alabama Department of Economic and Community Affairs Qualified Opportunity Zone Fund. | D7: Form 20C Instructions, Corporation Income Tax Return | E7: Alabama 10-510
D8: Alabama Code §40-18-6.1
D9: Alabama Code §440-18-8.1
A10: Alaska | B10: Yes, same as federal treatment. | D10: Form 6000 Instructions, Corporation Net Income Tax Return | E10: Alaska 10-510
D11: Alaska Stat. §43.20.021
A12: Arizona | B12: Yes, same as federal treatment. | D12: Ariz. Rev. Stat. §43-105 | E12: Arizona 10-510
D13: Form 120 Instructions, Corporation Income Tax Return
A14: Arkansas | B14: Yes, if qualified opportunity zone is located in state. | D14: Form AR1100CT Instructions, Corporation Income Tax Return | E14: Arkansas 10-510
D15: Ark. Code Ann. §26-51-460
A16: California | B16: No | D16: Form 100 Instructions, Corporation Franchise or Income Tax Return | E16: California 10-510
A17: Colorado | B17: Yes, same as federal treatment. | D17: Colo. Rev. Stat. §39-22-304(1) | E17: Colorado 10-510
D18: Form 112 Instructions, C Corporation Income Tax Return
D19: FYI Income 58
A20: Connecticut | B20: Yes, same as federal treatment. | D20: Form CT-1120 Instructions, Corporation Business Tax Return | E20: Connecticut 10-510
D21: Conn. Gen. Stat. §12-217
A22: Delaware | B22: Yes, same as federal treatment. | D22: Del. Code Ann. tit. 30, §1903 | E22: Delaware 10-510
D23: Form CIT-TAX Instructions, Corporation Income Tax Return
A24: District of Columbia | B24: Yes, same as federal treatment. | D24: D.C. Code Ann. §47-1803.02 | E24: District of Columbia 10-510
D25: Form D-20 Instructions, Corporation Franchise Tax Return
A26: Florida | B26: Yes, same as federal treatment. | D26: Form F-1120 Instructions, Corporate Income/Franchise and Emergency Excise Tax Return | E26: Florida 10-510
D27: Fla. Stat. ch. 220.13
D28: Fla. Admin. Code Ann. r. 12C-1.013
A29: Georgia | B29: Yes, same as federal treatment. | D29: Ga. Code Ann. §48-7-21(a) | E29: Georgia 10-510
A30: Hawaii | B30: Yes, except state limits scope to opportunity zones designated by the governor. | D30: Haw. Rev. Stat. §235-2.3 | E30: Hawaii 10-510
D31: Form N-30 Instructions, Corporation Income Tax Return
D32: Haw. Rev. Stat. §235-2.45(k)
A33: Idaho | B33: Yes, same as federal treatment. | D33: Idaho Code §63-3022 | E33: Idaho 10-510
D34: Form 41 Instructions, Corporation Income Tax Return
A35: Illinois | B35: Yes, same as federal treatment. | D35: Form IL-1120 Instructions, Corporation Income and Replacement Tax Return | E35: Illinois 10-510
D36: 35 ILCS 5/203(b)
A37: Indiana | B37: Yes, same as federal treatment. | D37: Ind. Code §6-3-1-3.5 | E37: Indiana 10-510
D38: Ind. Code §6-3-1-11
D39: Form IT-20 Instructions, Corporate Adjusted Gross Income Tax Return
A40: Iowa | B40: Yes, same as federal treatment. | D40: Iowa Code §422.3(5) | E40: Iowa 10-510
D41: Form IA 1120 Instructions, Corporation Income Tax Return
D42: Iowa Code §422.32(1)
A43: Kansas | B43: Yes, same as federal treatment. | D43: Kan. Stat. Ann. §79-32,138(c)(v) | E43: Kansas 10-510
D44: Form K-120 Instructions, Corporation Income Tax Return
D45: Kan. Stat. Ann. §79-32,109
A46: Kentucky | B46: Yes, same as federal treatment. | D46: Ky. Rev. Stat. Ann. §141.039 | E46: Kentucky 10-510
D47: Form 720 Instructions, Corporation Income Tax Return
D48: Ky. Rev. Stat. Ann. §141.010
A49: Louisiana | B49: Yes, same as federal treatment. | D49: La. Rev. Stat. Ann. §47:287.701 | E49: Louisiana 10-510
D50: Form CIFT-620 Instructions, Corporation Income Tax Return
A51: Maine | B51: Yes, same as federal treatment. | D51: Form 1120ME Instructions, Corporate Income Tax Return | E51: Maine 10-510
D52: Me. Rev. Stat. Ann. tit. 36, §111.1-A
A53: Maryland | B53: Yes, same as federal treatment. | D53: Md. Code Ann. §10-108 | E53: Maryland 10-510
D54: Form 500 Instructions, Corporation Income Tax Return
A55: Massachusetts | B55: Yes, same as federal treatment. | D55: Mass. Gen. Laws ch. 63, §30(4) | E55: Massachusetts 10-510
D56: Mass. Gen. Laws ch. 63, §38(a) | E56: Massachusetts 10-690
D57: TIR 19-7
A58: Michigan | B58: Yes, same as federal treatment. | D58: Mich. Comp. Laws §208.1109(3) | E58: Michigan 10-510
D59: Mich. Comp. Laws §206.623
D60: Mich. Comp. Laws §206.607(1) and (6)
D61: Form 4891, Corporate Income Tax Annual Return
A62: Minnesota | B62: Yes, same as federal treatment. | D62: Minn. Stat. §289A.02(7) | E62: Minnesota 10-510
D63: Minn. Stat. §290.21(4)
A64: Mississippi | B64: No | D64: Miss. Code. Ann. §27-7-15(4) | E64: Mississippi 10-510
D65: Miss. Code. Ann. §27-7-17(1) | E65: Mississippi 10-515
D66: Form 83-100 Instructions, Corporate Income and Franchise Tax Return
A67: Missouri | B67: Yes, same as federal treatment. | D67: Mo. Rev. Stat. §143.091 | E67: Missouri 10-510
D68: Form MO-1120 Instructions, Corporation Income Tax Return
D69: Mo. Rev. Stat. §143.431
A70: Montana | B70: Yes, same as federal treatment. | D70: Mont. Code Ann. §15-31-113 | E70: Montana 10-510
D71: Baker Bancorporation, Inc. v. DOR | E71: Montana 10-515
D72: Form CIT Instructions, Corporate Income Tax Return
A73: Nebraska | B73: Yes, same as federal treatment. | D73: Neb. Rev. Stat. §49-801.01 | E73: Nebraska 10-510
D74: Form 1120N Instructions, Corporation Income Tax Return
A75: Nevada | B75: N/A, because state does not tax general business corporation income. | E75: Nevada 10-001
A76: New Hampshire | B76: No | D76: N.H. Rev. Stat. Ann. §77-A:1 | E76: New Hampshire 10-510
D77: N.H. Rev. Stat. Ann. §77-A:4 | E77: New Hampshire 10-690
D78: TIR 2019-002
D79: Form NH-1120 Instructions, Corporate Business Profits Tax Return and Schedule IV
A80: New Jersey | B80: Yes, same as federal treatment. | D80: Form CBT-100 Instructions, Corporation Business Tax Return | E80: New Jersey 10-510
D81: N.J. Stat. Ann. §54:10A-4
D82: N.J. Admin. Code tit. 18, §18:7-5.2
A83: New Mexico | B83: Yes, same as federal treatment. | D83: Form CIT-1 Instructions, Corporate Income and Franchise Tax Return | E83: New Mexico 10-510
D84: N.M. Stat. Ann. §7-2A-2(C) and (G)
A85: New York | B85: No | D85: Form CT-3 Instructions, General Business Corporation Franchise Tax Return | E85: New York 10-510
D86: Preliminary Report on TCJA | E86: New York 10-640
D87: N.Y. Tax Law, §208
A88: North Carolina | B88: No | D88: Form CD-405 Instructions, Corporation Tax Return | E88: North Carolina 10-510
D89: N.C. Gen. Stat. §150-130.5(a)(26) and (27) | E89: North Carolina 10-640
D90: N.C. Gen. Stat. §150-130.5(b)(30)
A91: North Dakota | B91: Yes, same as federal treatment. | D91: N.D. Cent. Code §57-38-01.5 | E91: North Dakota 10-510
D92: N.D. Cent. Code §57-38-01.3
D93: Form 40, Corporation Income Tax Return
A94: Ohio | B94: Yes, same as federal treatment. | C94: An income tax credit for investments in Ohio-designated opportunity zones is allowed for individuals, trusts, estates, and pass-through entities. We recommend you reference cited authority for more information. | D94: Ohio Rev. Code Ann. §5701.11 | E94: Ohio 14-130
D95: Ohio Rev. Code Ann. §5751.02 | E95: Ohio 16-830a
D96: Ohio Rev. Code Ann. §5751.01
A97: Oklahoma | B97: Yes, same as federal treatment. | D97: Okla. Stat. tit. 68, §2353(2) | E97: Oklahoma 10-510
D98: Form 512 Instructions, Corporation Income Tax Return
A99: Oregon | B99: Yes, same as federal treatment. | D99: Form 20-I Instructions, Corporation Income Tax Return | E99: Oregon 10-510
D100: Form 20 Instructions, Corporation Excise Tax Return
D101: Or. Rev. Stat. §317.010(7)
A102: Pennsylvania | B102: Yes, same as federal treatment. | D102: 72 P.S. §7401(3)1 | E102: Pennsylvania 10-510
D103: Form RCT-101 Instructions, Corporate Tax Report
D104: Pennsylvania Tax Bulletin
A105: Rhode Island | B105: Yes, with modifications. | D105: Form RI-1120C Instructions, Business Corporation Tax Return | E105: Rhode Island 10-510
D106: RI Gen Laws Sec. 44-11-11(e)
A107: South Carolina | B107: Yes, same as federal treatment. | D107: S.C. Code Ann. §12-6-40(A)(1) | E107: South Carolina 10-510
D108: Form SC 1120 Instructions, Corporation Income Tax Return
A109: South Dakota | B109: N/A, because state does not tax general business corporation income. | E109: South Dakota 14-001
A110: Tennessee | B110: Yes, same as federal treatment. | D110: Tenn. Code Ann. §67-4-2006 | E110: Tennessee 10-510
D111: Form FAE 170 Instructions, Franchise, Excise Tax Return
A112: Texas | B112: No statutory, regulatory, or administrative guidance. | D112: Tex. Tax Code Ann. §171.0001(9) | E112: Texas 10-510
D113: Tex. Tax Code Ann. §171.1011
D114: Tex. Admin. Code §3.587(d)(1)(B)(ii) and (iv)
D115: Form 05-905 Instructions, Franchise Tax Report Information and Instructions
A116: Utah | B116: Yes, same as federal treatment. | D116: Form TC-20 Instructions, Corporation Franchise or Income Tax Return | E116: Utah 10-510
D117: Utah Code Ann. §59-7-101(20)
A118: Vermont | B118: Yes, same as federal treatment. | D118: Vt. Stat. Ann. tit. 32, §5811(18) | E118: Vermont 10-510
D119: Form CO-411 Instructions, Corporate Income Tax Return
D120: Vt. Stat. Ann. tit. 32, §5824
A121: Virginia | B121: Yes, same as federal treatment. | D121: Va. Code. Ann. §58.1-301 | E121: Virginia 10-510
D122: Form 500 Instructions, Corporation Income Tax Return
D123: 23 Va. Admin. Code § 10-120-100
A124: Washington | B124: N/A, because state does not tax general business corporation income. | E124: Washington 10-001
A125: West Virginia | B125: Yes, same as federal treatment. | C125: A deduction for certain income from business activity in state opportunity zones may also be allowed. We recommend you reference cited authority for more information. | D125: W. Va. Code. §11-24-6 | E125: West Virginia 10-510
D126: W. Va. Code. §11-24-6b
D127: Form CIT-120 Instructions, Corporation Net Income Tax Return
A128: Wisconsin | B128: Yes, same as federal treatment. | C128: An additional capital gain exclusion or basis adjustment is allowed for investments in a Wisconsin qualified opportunity fund, applicable to taxable years beginning after 2019. We recommend you reference cited authority for more information. | D128: Wis. Stat. §71.01(13) | E128: Wisconsin 10-510
D129: Wis. Stat. §71.05 (25m) | E129: Wisconsin 10-910
D130: Fact Sheet 1121
A131: Wyoming | B131: N/A, because state does not tax general business corporation income. | E131: Wyoming 10-001

Sheet Chart Backup (hidden)
D4: CIM Opportnuity Zone Tax Hypotheticals | G4: Year | H4: 0 | I4: =H4+1 -> 1 | J4: 2 | K4: 3 | L4: 4 | M4: 5 | N4: 6 | O4: 7 | P4: 8 | Q4: 9 | R4: 10
H5: =Calculation!H17 -> 2025 | I5: =H5+1 -> 2026 | J5: 2027 | K5: 2028 | L5: 2029 | M5: 2030 | N5: 2031 | O5: 2032 | P5: 2033 | Q5: 2034 | R5: 2035
D6: $000s | H6: =DATE(H5,12,31) -> 2025-12-31 | I6: 2026-12-31 | J6: 2027-12-31 | K6: 2028-12-31 | L6: 2029-12-31 | M6: 2030-12-31 | N6: 2031-12-31 | O6: 2032-12-31 | P6: 2033-12-31 | Q6: 2034-12-31 | R6: 2035-12-31
D8: 2019 Fund Entry | F8: Date | G8: Rate
D9: Contribution | F9: Hold | G9: 10 | H9: =-Calculation!H13 -> -1000000
D10: Basis Adj. | G10: =Calculation!O19 -> 0 | H10: =H9*(1-G10) -> -1000000
D11: Deferred Cap Gain Tax | F11: 2026 | G11: 0.238 | H11: =IF(H5=$F$11,Calculation!$O$32,0) -> 0 | I11: =IF(I5=$F$11,Calculation!$O$32,0) -> -307900 | J11: =IF(J5=$F$11,Calculation!$O$32,0) -> 0 | K11: =IF(K5=$F$11,Calculation!$O$32,0) -> 0 | L11: =IF(L5=$F$11,Calculation!$O$32,0) -> 0 | M11: =IF(M5=$F$11,Calculation!$O$32,0) -> 0 | N11: =IF(N5=$F$11,Calculation!$O$32,0) -> 0 | O11: =IF(O5=$F$11,Calculation!$O$32,0) -> 0 | P11: =IF(P5=$F$11,Calculation!$O$32,0) -> 0 | Q11: =IF(Q5=$F$11,Calculation!$O$32,0) -> 0 | R11: =IF(R5=$F$11,Calculation!$O$32,0) -> 0
D12: State Tax (net of federal benefit) | H12: =Calculation!O28 -> 0 | R12: =Calculation!O37 -> 0
D13: NAV | F13: Growth | G13: =Calculation!H16 -> 0.09 | H13: =-H9 -> 1000000 | I13: =H13*(1+$G$13) -> 1090000 | J13: 1188100 | K13: 1295029 | L13: 1411581.61 | M13: 1538623.955 | N13: 1677100.111 | O13: 1828039.121 | P13: 1992562.642 | Q13: 2171893.279 | R13: 2367363.675
D14: Total | H14: =H9+H11+IF(H4=$G$9,H13,0) -> -1000000 | I14: -307900 | J14: 0 | K14: 0 | L14: 0 | M14: 0 | N14: 0 | O14: 0 | P14: 0 | Q14: 0 | R14: =R9+R11+IF(R4=$G$9,R13,0)+R12 -> 2367363.675
D15: Pre-Tax | H15: =H9 -> -1000000 | R15: =R13 -> 2367363.675
D17: Pre-Tax IRR | F17: =XIRR(H15:R15,H6:R6) -> 0.08994856179
D18: IRR | F18: =XIRR(H14:R14,H6:R6) -> 0.06257826984
D19: MOIC | F19: =SUMIF(H14:R14,">"&0)/-SUMIF(H14:R14,"<"&0) -> 1.810049449
D21: CIM Opportnuity Zone Tax Hypotheticals | G21: Year | H21: 0 | I21: =H21+1 -> 1 | J21: 2 | K21: 3 | L21: 4 | M21: 5 | N21: 6 | O21: 7 | P21: 8 | Q21: 9 | R21: 10
H22: 2020 | I22: =H22+1 -> 2021 | J22: 2022 | K22: 2023 | L22: 2024 | M22: 2025 | N22: 2026 | O22: 2027 | P22: 2028 | Q22: 2029 | R22: 2030
D23: $000s | H23: =DATE(H22,12,31) -> 2020-12-31 | I23: 2021-12-31 | J23: 2022-12-31 | K23: 2023-12-31 | L23: 2024-12-31 | M23: 2025-12-31 | N23: 2026-12-31 | O23: 2027-12-31 | P23: 2028-12-31 | Q23: 2029-12-31 | R23: 2030-12-31
D25: 2020 Fund Entry | F25: Date | G25: Rate
D26: Contribution | F26: Hold | G26: 10 | H26: -1000000
D27: Basis Adj. | G27: 0.1 | H27: =H26*(1-G27) -> -900000
D28: Deferred Cap Gain Tax | F28: 2026 | G28: 0.238 | H28: =IF(H22=$F$28,$H$27*$G$28,0) -> 0 | I28: 0 | J28: 0 | K28: 0 | L28: 0 | M28: 0 | N28: -214200 | O28: 0 | P28: 0 | Q28: 0 | R28: 0
D29: NAV | F29: Growth | G29: 0.09 | H29: =-H26 -> 1000000 | I29: =H29*(1+$G$85) -> 1090000 | J29: 1188100 | K29: 1295029 | L29: 1411581.61 | M29: 1538623.955 | N29: 1677100.111 | O29: 1828039.121 | P29: 1992562.642 | Q29: 2171893.279 | R29: 2367363.675
D30: Total | H30: =H26+H28+IF(H21=$G$9,H29,0) -> -1000000 | I30: 0 | J30: 0 | K30: 0 | L30: 0 | M30: 0 | N30: -214200 | O30: 0 | P30: 0 | Q30: 0 | R30: 2367363.675
D32: IRR | F32: =XIRR(H30:R30,H23:R23) -> 0.07595411241
D33: MOIC | F33: =SUMIF(H30:R30,">"&0)/-SUMIF(H30:R30,"<"&0) -> 1.949731242
D35: CIM Opportnuity Zone Tax Hypotheticals | G35: Year | H35: 0 | I35: =H35+1 -> 1 | J35: 2 | K35: 3 | L35: 4 | M35: 5 | N35: 6 | O35: 7 | P35: 8 | Q35: 9 | R35: 10
H36: 2021 | I36: =H36+1 -> 2022 | J36: 2023 | K36: 2024 | L36: 2025 | M36: 2026 | N36: 2027 | O36: 2028 | P36: 2029 | Q36: 2030 | R36: 2031
D37: $000s | H37: =DATE(H36,12,31) -> 2021-12-31 | I37: 2022-12-31 | J37: 2023-12-31 | K37: 2024-12-31 | L37: 2025-12-31 | M37: 2026-12-31 | N37: 2027-12-31 | O37: 2028-12-31 | P37: 2029-12-31 | Q37: 2030-12-31 | R37: 2031-12-31
D39: 2021 Fund Entry | F39: Date | G39: Rate
D40: Contribution | F40: Hold | G40: 10 | H40: -1000000
D41: Basis Adj. | G41: 0.1 | H41: =H40*(1-G41) -> -900000
D42: Deferred Cap Gain Tax | F42: 2026 | G42: 0.238 | H42: =IF(H36=$F$42,$H$41*$G$42,0) -> 0 | I42: 0 | J42: 0 | K42: 0 | L42: 0 | M42: -214200 | N42: 0 | O42: 0 | P42: 0 | Q42: 0 | R42: 0
D43: NAV | F43: Growth | G43: 0.09 | H43: =-H40 -> 1000000 | I43: =H43*(1+$G$43) -> 1090000 | J43: 1188100 | K43: 1295029 | L43: 1411581.61 | M43: 1538623.955 | N43: 1677100.111 | O43: 1828039.121 | P43: 1992562.642 | Q43: 2171893.279 | R43: 2367363.675
D44: Total | H44: =H40+H42+IF(H35=$G$9,H43,0) -> -1000000 | I44: 0 | J44: 0 | K44: 0 | L44: 0 | M44: -214200 | N44: 0 | O44: 0 | P44: 0 | Q44: 0 | R44: 2367363.675
D46: IRR | F46: =XIRR(H44:R44,H37:R37) -> 0.07490018308
D47: MOIC | F47: =SUMIF(H44:R44,">"&0)/-SUMIF(H44:R44,"<"&0) -> 1.949731242
D49: CIM Opportnuity Zone Tax Hypotheticals | G49: Year | H49: 0 | I49: =H49+1 -> 1 | J49: 2 | K49: 3 | L49: 4 | M49: 5 | N49: 6 | O49: 7 | P49: 8 | Q49: 9 | R49: 10
H50: 2022 | I50: =H50+1 -> 2023 | J50: 2024 | K50: 2025 | L50: 2026 | M50: 2027 | N50: 2028 | O50: 2029 | P50: 2030 | Q50: 2031 | R50: 2032
D51: $000s | H51: =DATE(H50,12,31) -> 2022-12-31 | I51: 2023-12-31 | J51: 2024-12-31 | K51: 2025-12-31 | L51: 2026-12-31 | M51: 2027-12-31 | N51: 2028-12-31 | O51: 2029-12-31 | P51: 2030-12-31 | Q51: 2031-12-31 | R51: 2032-12-31
D53: 2022 Fund Entry | F53: Date | G53: Rate
D54: Contribution | F54: Hold | G54: 10 | H54: -1000000
D55: Basis Adj. | G55: 0 | H55: =H54*(1-G55) -> -1000000
D56: Deferred Cap Gain Tax | F56: 2026 | G56: 0.238 | H56: =IF(H50=$F$56,$H$55*$G$56,0) -> 0 | I56: 0 | J56: 0 | K56: 0 | L56: -238000 | M56: 0 | N56: 0 | O56: 0 | P56: 0 | Q56: 0 | R56: 0
D57: NAV | F57: Growth | G57: 0.09 | H57: =-H54 -> 1000000 | I57: =H57*(1+$G$57) -> 1090000 | J57: 1188100 | K57: 1295029 | L57: 1411581.61 | M57: 1538623.955 | N57: 1677100.111 | O57: 1828039.121 | P57: 1992562.642 | Q57: 2171893.279 | R57: 2367363.675
D58: Total | H58: =H54+H56+IF(H49=$G$9,H57,0) -> -1000000 | I58: 0 | J58: 0 | K58: 0 | L58: -238000 | M58: 0 | N58: 0 | O58: 0 | P58: 0 | Q58: 0 | R58: 2367363.675
D60: IRR | F60: =XIRR(H58:R58,H51:R51) -> 0.07203136384
D61: MOIC | F61: =SUMIF(H58:R58,">"&0)/-SUMIF(H58:R58,"<"&0) -> 1.912248526
D63: CIM Opportnuity Zone Tax Hypotheticals | G63: Year | H63: 0 | I63: =H63+1 -> 1 | J63: 2 | K63: 3 | L63: 4 | M63: 5 | N63: 6 | O63: 7 | P63: 8 | Q63: 9 | R63: 10
H64: 2023 | I64: =H64+1 -> 2024 | J64: 2025 | K64: 2026 | L64: 2027 | M64: 2028 | N64: 2029 | O64: 2030 | P64: 2031 | Q64: 2032 | R64: 2033
D65: $000s | H65: =DATE(H64,12,31) -> 2023-12-31 | I65: 2024-12-31 | J65: 2025-12-31 | K65: 2026-12-31 | L65: 2027-12-31 | M65: 2028-12-31 | N65: 2029-12-31 | O65: 2030-12-31 | P65: 2031-12-31 | Q65: 2032-12-31 | R65: 2033-12-31
D67: 2023 Fund Entry | F67: Date | G67: Rate
D68: Contribution | F68: Hold | G68: 10 | H68: -1000000
D69: Basis Adj. | G69: 0 | H69: =H68*(1-G69) -> -1000000
D70: Deferred Cap Gain Tax | F70: 2026 | G70: 0.238 | H70: =IF(H64=$F$70,$H$69*$G$70,0) -> 0 | I70: 0 | J70: 0 | K70: -238000 | L70: 0 | M70: 0 | N70: 0 | O70: 0 | P70: 0 | Q70: 0 | R70: 0
D71: NAV | F71: Growth | G71: 0.09 | H71: =-H68 -> 1000000 | I71: =H71*(1+$G$85) -> 1090000 | J71: 1188100 | K71: 1295029 | L71: 1411581.61 | M71: 1538623.955 | N71: 1677100.111 | O71: 1828039.121 | P71: 1992562.642 | Q71: 2171893.279 | R71: 2367363.675
D72: Total | H72: =H68+H70+IF(H63=$G$9,H71,0) -> -1000000 | I72: 0 | J72: 0 | K72: -238000 | L72: 0 | M72: 0 | N72: 0 | O72: 0 | P72: 0 | Q72: 0 | R72: 2367363.675
D74: IRR | F74: =XIRR(H72:R72,H65:R65) -> 0.07080074847
D75: MOIC | F75: =SUMIF(H72:R72,">"&0)/-SUMIF(H72:R72,"<"&0) -> 1.912248526
D77: CIM Opportnuity Zone Tax Hypotheticals | G77: Year | H77: 0 | I77: =H77+1 -> 1 | J77: 2 | K77: 3 | L77: 4 | M77: 5 | N77: 6 | O77: 7 | P77: 8 | Q77: 9 | R77: 10
H78: 2024 | I78: =H78+1 -> 2025 | J78: 2026 | K78: 2027 | L78: 2028 | M78: 2029 | N78: 2030 | O78: 2031 | P78: 2032 | Q78: 2033 | R78: 2034
D79: $000s | H79: =DATE(H78,12,31) -> 2024-12-31 | I79: 2025-12-31 | J79: 2026-12-31 | K79: 2027-12-31 | L79: 2028-12-31 | M79: 2029-12-31 | N79: 2030-12-31 | O79: 2031-12-31 | P79: 2032-12-31 | Q79: 2033-12-31 | R79: 2034-12-31
D81: 2024 Fund Entry | F81: Date | G81: Rate
D82: Contribution | F82: Hold | G82: 10 | H82: -1000000
D83: Basis Adj. | G83: 0 | H83: =H82*(1-G83) -> -1000000
D84: Deferred Cap Gain Tax | F84: 2026 | G84: 0.238 | H84: =IF(H78=$F$84,$H$83*$G$84,0) -> 0 | I84: 0 | J84: -238000 | K84: 0 | L84: 0 | M84: 0 | N84: 0 | O84: 0 | P84: 0 | Q84: 0 | R84: 0
D85: NAV | F85: Growth | G85: 0.09 | H85: =-H82 -> 1000000 | I85: =H85*(1+$G$85) -> 1090000 | J85: 1188100 | K85: 1295029 | L85: 1411581.61 | M85: 1538623.955 | N85: 1677100.111 | O85: 1828039.121 | P85: 1992562.642 | Q85: 2171893.279 | R85: 2367363.675
D86: Total | H86: =H82+H84+IF(H77=$G$9,H85,0) -> -1000000 | I86: 0 | J86: -238000 | K86: 0 | L86: 0 | M86: 0 | N86: 0 | O86: 0 | P86: 0 | Q86: 0 | R86: 2367363.675
D88: IRR | F88: =XIRR(H86:R86,H79:R79) -> 0.06955201924
D89: MOIC | F89: =SUMIF(H86:R86,">"&0)/-SUMIF(H86:R86,"<"&0) -> 1.912248526
D91: CIM Opportnuity Zone Tax Hypotheticals | G91: Year | H91: 0 | I91: =H91+1 -> 1 | J91: 2 | K91: 3 | L91: 4 | M91: 5 | N91: 6 | O91: 7 | P91: 8 | Q91: 9 | R91: 10
H92: 2025 | I92: =H92+1 -> 2026 | J92: 2027 | K92: 2028 | L92: 2029 | M92: 2030 | N92: 2031 | O92: 2032 | P92: 2033 | Q92: 2034 | R92: 2035
D93: $000s | H93: =DATE(H92,12,31) -> 2025-12-31 | I93: 2026-12-31 | J93: 2027-12-31 | K93: 2028-12-31 | L93: 2029-12-31 | M93: 2030-12-31 | N93: 2031-12-31 | O93: 2032-12-31 | P93: 2033-12-31 | Q93: 2034-12-31 | R93: 2035-12-31
D95: 2025 Fund Entry | F95: Date | G95: Rate
D96: Contribution | F96: Hold | G96: 10 | H96: -1000000
D97: Basis Adj. | G97: 0 | H97: =H96*(1-G97) -> -1000000
D98: Deferred Cap Gain Tax | F98: 2026 | G98: 0.238 | H98: =IF(H92=$F$84,$H$83*$G$84,0) -> 0 | I98: =IF(I92=$F$98,$H$97*$G$98,0) -> -238000 | J98: 0 | K98: 0 | L98: 0 | M98: 0 | N98: 0 | O98: 0 | P98: 0 | Q98: 0 | R98: 0
D99: NAV | F99: Growth | G99: 0.09 | H99: =-H96 -> 1000000 | I99: =H99*(1+$G$99) -> 1090000 | J99: 1188100 | K99: 1295029 | L99: 1411581.61 | M99: 1538623.955 | N99: 1677100.111 | O99: 1828039.121 | P99: 1992562.642 | Q99: 2171893.279 | R99: 2367363.675
D100: Total | H100: =H96+H98+IF(H91=$G$9,H99,0) -> -1000000 | I100: -238000 | J100: 0 | K100: 0 | L100: 0 | M100: 0 | N100: 0 | O100: 0 | P100: 0 | Q100: 0 | R100: 2367363.675
D102: IRR | F102: =XIRR(H100:R100,H93:R93) -> 0.06825637519
D103: MOIC | F103: =SUMIF(H100:R100,">"&0)/-SUMIF(H100:R100,"<"&0) -> 1.912248526
D105: CIM Opportnuity Zone Tax Hypotheticals | G105: Year | H105: 0 | I105: =H105+1 -> 1 | J105: 2 | K105: 3 | L105: 4 | M105: 5 | N105: 6 | O105: 7 | P105: 8 | Q105: 9 | R105: 10
H106: =H5 -> 2025 | I106: =H106+1 -> 2026 | J106: 2027 | K106: 2028 | L106: 2029 | M106: 2030 | N106: 2031 | O106: 2032 | P106: 2033 | Q106: 2034 | R106: 2035
D107: $000s | H107: =DATE(H106,12,31) -> 2025-12-31 | I107: 2026-12-31 | J107: 2027-12-31 | K107: 2028-12-31 | L107: 2029-12-31 | M107: 2030-12-31 | N107: 2031-12-31 | O107: 2032-12-31 | P107: 2033-12-31 | Q107: 2034-12-31 | R107: 2035-12-31
D109: Base Case Non OZ/Traditional Investment | F109: Date | G109: Rate
D110: Contribution | F110: Hold | G110: 10 | H110: =H9 -> -1000000
D111: Basis Adj. | G111: 0 | H111: =H110*(1-G111) -> -1000000
D112: Initial Cap Gain Tax | F112: =H106 -> 2025 | G112: 0.238 | H112: =Calculation!M28 -> -307900 | I112: =IF(I106=$F$112,$H$111*$G$112,0) -> 0 | J112: 0 | K112: 0 | L112: 0 | M112: 0 | N112: 0 | O112: 0 | P112: 0 | Q112: 0 | R112: 0
D113: NAV | F113: Growth | G113: =G13 -> 0.09 | H113: =-H111 -> 1000000 | I113: =H113*(1+$G$113) -> 1090000 | J113: 1188100 | K113: 1295029 | L113: 1411581.61 | M113: 1538623.955 | N113: 1677100.111 | O113: 1828039.121 | P113: 1992562.642 | Q113: 2171893.279 | R113: 2367363.675
D114: Capital Gain Tax | F114: 10 | G114: 0.238 | H114: =IF(H105=$F$114,-$G$114*(H113+$H$110),0) -> 0 | I114: 0 | J114: 0 | K114: 0 | L114: 0 | M114: 0 | N114: 0 | O114: 0 | P114: 0 | Q114: 0 | R114: =Calculation!M37 -> -421011.2754
D115: Total | H115: =H110+H112 -> -1307900 | I115: =I110+I112+IF(I105=$G$110,I113,0)+I114 -> 0 | J115: 0 | K115: 0 | L115: 0 | M115: 0 | N115: 0 | O115: 0 | P115: 0 | Q115: 0 | R115: 1946352.399
D116: Pre-Tax | H116: =-H113 -> -1000000 | R116: =R113 -> 2367363.675
D118: Pre-Tax IRR | F118: =XIRR(H116:R116,H107:R107) -> 0.08994856179
D119: IRR | F119: =XIRR(H115:R115,H107:R107) -> 0.04053151309
D120: MOIC | F120: =SUMIF(H115:R115,">"&0)/-SUMIF(H115:R115,"<"&0) -> 1.488150775
H121: 718000
